bitfinex-derivatives/quotes_ETHF0:USTF0_20260226
["timestamp","ask_amount","ask_price","bid_price","bid_amount"]
[1772066527631,4.13461369,2054.7,2053.8,3.86541052]
[1772066527925,4.13461369,2054.7,2053.9,3.86541052]
[1772066528826,6.356,2054.8,2053.9,3.86541052]
[1772066530227,4.13461369,2054.7,2053.9,3.86541052]
[1772066530428,4.13461369,2054.6,2053.7,9.92425654]
[1772066530623,4.13461369,2054.6,2053.8,3.86541052]
[1772066532030,4.13461369,2054.3,2053.5,3.86541052]
[1772066532228,4.13461369,2054.2,2053.5,3.86541052]
[1772066533928,4.13461369,2054.8,2053.5,3.86541052]
[1772066534236,4.13461369,2054.6,2053.7,3.86541052]
[1772066534427,4.13461369,2054.6,2053.8,3.86541052]
[1772066534629,4.13461369,2054.6,2053.7,3.86541052]
[1772066535232,4.13461369,2054.6,2053.5,3.86541052]
[1772066536134,4.13461369,2054.6,2053.7,3.86541052]
[1772066536632,6.356,2054.7,2053.7,3.86541052]
[1772066537027,10.49061369,2054.7,2053.7,3.86541052]
[1772066537633,10.49061369,2054.7,2053.8,3.86541052]
[1772066538225,6.356,2054.7,2053.8,3.86541052]
[1772066538435,6.356,2054.7,2053.9,3.86541052]
[1772066539432,6.356,2054.7,2054.0,3.86541052]
[1772066539839,4.13461369,2054.9,2054.0,3.86541052]
[1772066540338,4.13461369,2055.1,2054.0,3.86541052]
[1772066540536,4.13461369,2055.1,2054.2,3.86541052]
[1772066541734,4.13461369,2054.9,2053.9,3.86541052]
[1772066541933,4.13461369,2054.7,2053.9,3.86541052]
[1772066543741,4.13091479,2054.7,2053.9,3.86541052]
[1772066544142,6.357,2054.8,2053.5,7.64499798]
[1772066544143,4.13461369,2054.3,2053.5,9.98140891]
[1772066544341,4.13461369,2054.1,2053.5,9.98140891]
[1772066544838,4.13461369,2054.8,2053.6,3.86541052]
[1772066545139,4.13461369,2054.5,2053.6,3.86541052]
[1772066545739,4.13461369,2054.5,2053.7,4.1153015]
[1772066546841,10.49161369,2054.5,2053.7,4.1153015]
[1772066547839,3.89661026,2054.4,2053.7,4.1153015]
[1772066549041,10.25361026,2054.5,2053.7,4.1153015]
[1772066550742,3.89661026,2054.4,2053.7,4.1153015]
[1772066551543,3.89661026,2054.4,2053.8,4.1153015]
[1772066552141,0.24329,2054.9,2053.9,3.86943095]
[1772066552142,3.78832706,2054.8,2053.9,3.86943095]
[1772066552342,3.78832706,2054.8,2054.1,3.86943095]
[1772066553247,3.78832706,2054.8,2054.2,3.86943095]
[1772066555150,3.78832706,2055.2,2054.3,3.86943095]
[1772066555350,3.78832706,2055.2,2054.4,3.86943095]
[1772066556445,3.78832706,2055.2,2054.5,3.86943095]
[1772066556841,0.00456254,2055.3,2054.5,3.86943095]
[1772066557148,3.78832706,2055.8,2055.0,3.86943095]
[1772066558151,0.00494099,2055.8,2055.0,3.87328485]
[1772066558749,10.14632706,2056.2,2055.1,3.86943095]
[1772066558951,3.78832706,2056.1,2055.2,3.86943095]
[1772066559353,3.78832706,2056.1,2055.4,3.86943095]
[1772066559951,3.79439908,2056.1,2055.4,3.86943095]
[1772066560153,3.78832706,2056.6,2055.4,3.86943095]
[1772066561052,5.77936169,2056.6,2055.4,3.86943095]
[1772066561252,3.78832706,2056.5,2055.4,3.86943095]
[1772066562857,3.78832706,2056.5,2055.5,3.86943095]
[1772066565858,0.00592685,2056.6,2055.5,3.86943095]
[1772066566261,3.79425391,2056.6,2055.5,3.86943095]
[1772066568262,3.79425391,2056.6,2055.1,6.694]
[1772066568263,3.78832706,2056.4,2055.3,3.86943095]
[1772066568463,3.78832706,2056.2,2055.3,3.86943095]
[1772066569267,10.14732706,2056.3,2055.3,3.86943095]
[1772066569468,3.78832706,2056.5,2055.3,3.86943095]
[1772066570068,3.78832706,2056.5,2055.4,3.86943095]
[1772066571469,3.79425391,2056.6,2055.4,3.86943095]
[1772066571864,3.78832706,2056.4,2055.4,3.86943095]
[1772066573469,3.78832706,2056.4,2055.4,4.11265095]
[1772066573676,3.79425391,2056.6,2055.4,4.11265095]
[1772066575171,3.79425391,2056.6,2055.4,3.86943095]
[1772066578176,0.00592685,2056.6,2055.6,4.04701512]
[1772066578370,0.00592685,2056.6,2055.8,4.04701512]
[1772066578577,3.95095865,2056.6,2055.8,4.04701512]
[1772066580980,3.95095865,2056.6,2055.6,4.04701512]
[1772066581182,3.9450318,2056.4,2055.6,4.04701512]
[1772066581480,3.9450318,2056.2,2055.6,4.04701512]
[1772066582578,3.9450318,2056.2,2055.4,4.04701512]
[1772066583579,3.9450318,2056.4,2055.4,4.04701512]
[1772066584173,3.9450318,2056.4,2055.5,4.04701512]
[1772066584575,0.00592685,2056.6,2055.7,4.04701512]
[1772066584779,3.95095865,2056.6,2055.7,4.04701512]
[1772066585380,0.00592685,2056.6,2055.7,10.16301351]
[1772066585586,0.00592685,2056.6,2055.6,10.84975836]
[1772066585587,0.00592685,2056.6,2055.9,4.04701512]
[1772066586190,0.00592685,2056.6,2055.9,10.16301351]
[1772066586387,0.00592685,2056.6,2056.0,4.04701512]
[1772066586978,3.95095865,2056.6,2056.0,4.04701512]
[1772066587979,0.00592685,2056.6,2056.0,4.04701512]
[1772066588482,3.95095865,2056.6,2056.0,4.04701512]
[1772066588683,3.9450318,2056.5,2055.9,4.04701512]
[1772066589084,0.00592685,2056.6,2055.9,4.04701512]
[1772066589381,0.00592685,2056.6,2056.0,4.04701512]
[1772066589987,3.9450318,2057.0,2056.0,4.04701512]
[1772066590287,3.9450318,2057.2,2056.3,10.16301351]
[1772066590485,3.9450318,2057.2,2056.5,4.04701512]
[1772066591086,3.95089664,2057.2,2056.5,4.05257983]
[1772066592388,0.00586484,2057.2,2056.5,4.05257983]
[1772066593093,0.00586484,2057.2,2056.6,4.04701512]
[1772066593793,6.36,2057.5,2056.6,4.04701512]
[1772066594096,6.36,2057.5,2056.7,4.04701512]
[1772066594995,0.00507293,2057.5,2056.7,4.04701512]
[1772066595196,0.00507293,2057.5,2056.9,4.04701512]
[1772066595701,3.9450318,2057.8,2056.9,4.04701512]
[1772066596295,8.34752804,2057.9,2056.9,4.04701512]
[1772066596296,3.9450318,2057.5,2056.9,4.04701512]
[1772066596799,3.94953052,2057.5,2056.9,4.04701512]
[1772066597000,3.9450318,2057.2,2056.5,4.05257983]
[1772066597393,3.9450318,2057.4,2056.6,4.04701512]
[1772066597594,0.00449872,2057.5,2056.8,4.04701512]
[1772066599798,3.94953052,2057.5,2056.8,4.04701512]
[1772066600097,0.00449872,2057.5,2057.0,4.04701512]
[1772066600297,3.9450318,2057.9,2057.0,4.04701512]
[1772066600696,12.29452804,2058.3,2057.2,4.04701512]
[1772066600697,3.9450318,2058.1,2057.2,4.04701512]
[1772066601104,3.9450318,2058.4,2057.3,4.04701512]
[1772066601297,3.95109081,2058.4,2057.4,4.04701512]
[1772066601494,0.00605901,2058.4,2057.6,4.04701512]
[1772066602096,3.95109081,2058.4,2057.6,4.04701512]
[1772066602300,5.93255984,2058.8,2057.6,4.04701512]
[1772066602905,4.1878418,2058.9,2057.7,4.04701512]
[1772066603306,4.19203405,2058.9,2057.7,4.04701512]
[1772066603504,3.94922405,2058.9,2057.7,4.04701512]
[1772066604906,0.00419225,2058.9,2058.1,4.04701512]
[1772066605109,3.9450318,2059.5,2058.3,4.04701512]
[1772066605409,1.98752804,2059.1,2058.3,4.04701512]
[1772066605603,3.9450318,2059.0,2058.3,4.04701512]
[1772066606106,3.95013376,2059.0,2058.3,4.04701512]
[1772066606710,0.00510196,2059.0,2058.3,4.04701512]
[1772066608910,3.63976891,2059.6,2058.3,4.04701512]
[1772066609509,5.62729695,2059.5,2058.3,4.04701512]
[1772066609710,3.63976891,2059.5,2058.3,4.04701512]
[1772066609911,3.64479459,2059.5,2058.3,4.04701512]
[1772066610212,3.64479459,2059.5,2058.4,3.99597838]
[1772066611110,1.98752804,2059.4,2058.4,3.99597838]
[1772066611317,3.63976891,2059.0,2058.3,3.99597838]
[1772066612213,3.64315082,2059.2,2058.3,3.99597838]
[1772066617525,3.6481765,2059.5,2058.3,3.99597838]
[1772066620127,3.64315082,2059.2,2058.3,3.99597838]
[1772066624333,3.64315082,2059.4,2058.3,3.99597838]
[1772066624527,0.00502568,2059.5,2058.7,3.84407705]
[1772066624726,0.00502568,2059.5,2058.9,3.84407705]
[1772066624927,3.64315082,2060.0,2058.9,3.84407705]
[1772066626031,3.64803123,2060.0,2058.9,3.84407705]
[1772066627628,0.00488041,2060.0,2058.9,3.84407705]
[1772066628028,3.64803123,2060.0,2059.1,3.84407705]
[1772066628230,3.64315082,2059.6,2058.9,10.58507705]
[1772066628529,3.64315082,2059.4,2058.9,6.741]
[1772066628731,3.64315082,2059.4,2058.9,10.58507705]
[1772066630236,3.64315082,2059.4,2059.0,3.84407705]
[1772066631636,3.64803123,2060.0,2059.0,3.84407705]
[1772066631832,3.64315082,2059.9,2059.1,3.84407705]
[1772066632036,3.64315082,2059.7,2059.1,3.84407705]
[1772066632940,3.64315082,2059.9,2059.1,3.84407705]
[1772066633139,0.00488041,2060.0,2059.1,3.84407705]
[1772066633338,3.64803123,2060.0,2059.1,3.84407705]
[1772066635936,3.71389319,2059.8,2059.1,10.59807705]
[1772066636436,3.71389319,2059.5,2058.9,3.91801907]
[1772066636646,3.71389319,2059.5,2058.8,6.755]
[1772066636940,3.71389319,2059.5,2058.8,10.67301907]
[1772066637143,3.71389319,2059.2,2058.6,3.91801907]
[1772066637938,3.71389319,2059.2,2058.5,3.91801907]
[1772066638444,1.98752804,2059.6,2058.5,3.91801907]
[1772066638445,3.71389319,2059.6,2058.5,3.91801907]
[1772066638638,3.71389319,2059.6,2058.6,3.91801907]
[1772066639643,3.71389319,2059.4,2058.6,3.91801907]
[1772066640841,3.71389319,2059.6,2058.6,3.91801907]
[1772066641546,3.7187736,2060.0,2058.8,3.91801907]
[1772066641736,3.7187736,2060.0,2059.0,3.91801907]
[1772066642539,3.71389319,2059.8,2058.9,6.764]
[1772066642738,3.71389319,2059.8,2058.3,6.11599839]
[1772066642739,3.71389319,2059.4,2058.3,6.11599839]
[1772066642945,3.71389319,2059.2,2058.4,3.91801907]
[1772066643341,3.71389319,2059.2,2058.2,10.68101907]
[1772066643539,3.71389319,2059.2,2058.3,3.91801907]
[1772066643941,3.71389319,2059.0,2058.1,3.92158803]
[1772066647551,3.71389319,2059.2,2058.1,3.92158803]
[1772066648351,4.287012,2059.6,2058.6,3.91801907]
[1772066648352,3.71389319,2059.6,2058.6,3.91801907]
[1772066648549,0.24274,2059.5,2058.6,3.91801907]
[1772066648751,3.71389319,2059.3,2058.6,3.91801907]
[1772066650661,3.71389319,2059.7,2058.6,3.91801907]
[1772066652053,3.71389319,2059.9,2058.8,10.03401746]
[1772066652259,3.71389319,2059.9,2059.0,3.91801907]
[1772066653859,0.00488041,2060.0,2059.0,3.91801907]
[1772066654358,3.7187736,2060.0,2059.0,3.91801907]
[1772066655254,3.71389319,2059.8,2059.0,3.91801907]
[1772066656158,3.71389319,2059.5,2058.8,3.91801907]
[1772066656662,3.71389319,2059.5,2058.6,3.91801907]
[1772066657660,3.71389319,2059.3,2058.4,3.91801907]
[1772066658260,3.71389319,2059.3,2058.4,10.03401746]
[1772066658459,3.71389319,2059.3,2058.4,3.91801907]
[1772066659163,3.71389319,2059.7,2058.5,3.91801907]
[1772066660061,3.71389319,2059.7,2058.6,3.91801907]
[1772066660362,3.71389319,2059.6,2058.7,3.91801907]
[1772066660564,3.71389319,2059.6,2058.7,10.69801907]
[1772066661564,3.71389319,2059.6,2058.8,3.91801907]
[1772066664564,3.71389319,2059.4,2058.6,3.91801907]
[1772066666261,3.71389319,2059.4,2058.5,13.22864638]
[1772066666466,3.71389319,2059.4,2058.6,3.84264799]
[1772066672170,3.71389319,2059.4,2058.7,3.62449633]
[1772066672571,3.54695968,2059.7,2058.7,3.62449633]
[1772066675270,9.90795968,2059.8,2058.8,3.62449633]
[1772066675772,9.90795968,2059.8,2058.9,3.62449633]
[1772066676167,3.54695968,2059.8,2058.9,3.62449633]
[1772066676471,0.00488041,2060.0,2059.2,3.62449633]
[1772066676672,0.00488041,2060.0,2059.4,3.62449633]
[1772066677566,3.55184009,2060.0,2059.2,3.62449633]
[1772066678271,3.55184009,2060.0,2059.0,3.62449633]
[1772066679877,3.55184009,2060.0,2058.9,6.817]
[1772066680076,3.54695968,2059.8,2058.9,3.62449633]
[1772066680371,3.54695968,2059.7,2058.7,3.62449633]
[1772066684678,0.00488041,2060.0,2059.0,3.62449633]
[1772066684874,3.55184009,2060.0,2059.1,3.62449633]
[1772066685368,3.54695968,2059.8,2058.9,3.62449633]
[1772066685777,3.55184009,2060.0,2059.0,3.62449633]
[1772066686076,3.55184009,2060.0,2059.1,3.62449633]
[1772066686679,3.55184009,2060.0,2059.2,3.62449633]
[1772066688267,3.55184009,2060.0,2059.0,3.62449633]
[1772066688474,3.54695968,2059.8,2058.8,6.11599839]
[1772066688773,3.54695968,2059.7,2058.8,3.62449633]
[1772066694781,3.54695968,2059.7,2058.9,3.62449633]
[1772066695686,3.54695968,2059.4,2058.7,6.89449633]
[1772066695976,3.54695968,2059.4,2058.6,6.11599839]
[1772066696182,3.77670012,2059.2,2058.5,3.81296473]
[1772066696976,3.77670012,2059.2,2058.3,3.81296473]
[1772066697278,4.01948012,2059.2,2058.1,9.93253208]
[1772066697482,3.77670012,2058.9,2058.1,3.81653369]
[1772066698484,3.77670012,2058.7,2058.1,3.81653369]
[1772066698681,10.13770012,2059.1,2058.1,3.81653369]
[1772066698883,3.77670012,2059.0,2058.2,3.81296473]
[1772066700484,6.361,2059.1,2058.2,3.81296473]
[1772066700984,3.77670012,2059.3,2058.2,3.81296473]
[1772066701587,3.77670012,2059.3,2058.3,3.81296473]
[1772066702286,3.77670012,2059.1,2058.2,3.81296473]
[1772066702481,3.77670012,2059.1,2058.1,0.00356896]
[1772066702782,3.77670012,2059.1,2058.1,3.81653369]
[1772066703778,3.77670012,2059.1,2058.2,3.81296473]
[1772066704486,3.77670012,2059.1,2058.3,3.81296473]
[1772066704786,3.77670012,2059.3,2058.3,3.81296473]
[1772066706583,3.77670012,2058.9,2058.3,3.81296473]
[1772066707184,3.77670012,2059.2,2058.3,3.81296473]
[1772066707981,3.77670012,2059.4,2058.3,3.81296473]
[1772066708289,3.77670012,2059.4,2058.5,3.81296473]
[1772066708678,3.77670012,2059.6,2058.6,3.81296473]
[1772066709283,3.77670012,2059.0,2058.6,3.81296473]
[1772066709483,3.77670012,2059.0,2058.5,7.08296473]
[1772066709986,3.77670012,2059.0,2058.6,3.81296473]
[1772066710185,3.77670012,2059.2,2058.6,3.81296473]
[1772066710381,3.77670012,2059.4,2058.6,3.81296473]
[1772066712688,3.77670012,2059.6,2058.6,3.81296473]
[1772066712991,3.77670012,2059.6,2058.7,3.81296473]
[1772066713188,3.77670012,2059.6,2058.8,3.81296473]
[1772066713781,3.77670012,2059.4,2058.8,3.81296473]
[1772066717088,4.01943012,2059.6,2058.8,3.81296473]
[1772066720890,3.77670012,2059.6,2058.8,3.81296473]
[1772066721291,10.13770012,2059.7,2058.8,3.81296473]
[1772066721590,3.77670012,2059.6,2058.8,3.81296473]
[1772066727292,3.63617449,2059.2,2058.6,3.44130202]
[1772066727490,3.63617449,2059.0,2058.2,9.55730041]
[1772066727691,1.9817298,2058.5,2057.9,3.44130202]
[1772066727990,3.63617449,2058.4,2057.9,3.43535704]
[1772066728694,3.64057708,2058.4,2057.9,3.43913413]
[1772066729092,3.63617449,2058.8,2057.9,3.43913413]
[1772066729286,3.63617449,2058.8,2058.0,3.44130202]
[1772066729486,3.63617449,2058.7,2058.0,3.44130202]
[1772066730291,0.00531359,2058.7,2058.0,3.44130202]
[1772066730596,0.00531359,2058.7,2058.1,3.44130202]
[1772066730794,3.63617449,2059.1,2058.1,3.44130202]
[1772066731295,3.63617449,2059.0,2058.1,3.44130202]
[1772066731698,3.6422312,2059.0,2058.1,3.44130202]
[1772066734297,3.48930433,2058.7,2058.1,3.44130202]
[1772066737298,3.48930433,2058.7,2057.9,0.00377709]
[1772066737299,5.47103413,2058.6,2057.9,0.00377709]
[1772066737498,3.48930433,2058.5,2057.9,0.00377709]
[1772066738798,1.9817298,2058.4,2057.6,3.51930563]
[1772066738998,3.48930433,2058.3,2057.6,3.51930563]
[1772066739190,1.9817298,2057.7,2057.2,9.63530402]
[1772066739393,3.48930433,2057.6,2056.9,3.51930563]
[1772066739701,3.48930433,2057.6,2056.9,3.52378275]
[1772066740901,3.48930433,2057.8,2056.9,3.52378275]
[1772066741990,3.48930433,2057.6,2056.9,3.52378275]
[1772066743899,3.48930433,2057.2,2056.9,0.00447712]
[1772066744098,6.362,2057.4,2056.9,3.52378275]
[1772066744294,6.362,2057.5,2056.9,3.52378275]
[1772066745101,6.36688783,2057.5,2056.9,3.52378275]
[1772066745703,9.85619216,2057.5,2056.9,3.52378275]
[1772066745900,3.48930433,2057.4,2056.9,0.00447712]
[1772066746303,3.48930433,2057.2,2056.9,0.00447712]
[1772066746504,3.48930433,2057.2,2056.6,3.51930563]
[1772066747104,3.48930433,2057.2,2056.2,3.51930563]
[1772066747404,3.48930433,2057.2,2056.2,3.52443461]
[1772066747604,3.48930433,2057.1,2056.2,3.52443461]
[1772066748001,3.48930433,2057.0,2056.2,3.52443461]
[1772066750202,3.48930433,2057.3,2056.2,3.52443461]
[1772066751507,9.85619216,2057.5,2056.5,3.51930563]
[1772066751708,9.85619216,2057.5,2056.6,3.51930563]
[1772066756211,3.38627101,2057.4,2056.6,3.51930563]
[1772066756811,3.38627101,2057.1,2056.6,3.51930563]
[1772066758211,3.38627101,2057.1,2056.2,6.88612898]
[1772066758516,3.38627101,2057.1,2056.3,3.68046799]
[1772066760509,3.38627101,2056.6,2056.2,0.00512898]
[1772066760713,1.9817298,2056.5,2055.8,3.68046799]
[1772066760916,3.38627101,2056.6,2055.8,3.68046799]
[1772066760917,3.38627101,2056.4,2055.8,3.68046799]
[1772066761416,6.362,2056.8,2055.9,3.68046799]
[1772066761713,5.36800081,2057.3,2056.1,3.68046799]
[1772066761916,3.38627101,2057.4,2056.3,3.68046799]
[1772066762618,3.38627101,2057.1,2056.3,3.68046799]
[1772066763117,3.38627101,2057.3,2056.3,3.68046799]
[1772066764417,3.38627101,2057.2,2056.3,3.68046799]
[1772066764721,3.38627101,2056.9,2056.0,3.68046799]
[1772066764911,3.38627101,2056.8,2056.0,3.68046799]
[1772066768024,9.74827101,2057.1,2056.0,3.68046799]
[1772066768519,6.362,2057.1,2056.2,3.68046799]
[1772066768718,3.38627101,2057.3,2056.2,3.68046799]
[1772066769118,3.39115884,2057.5,2056.4,3.68046799]
[1772066769323,3.39115884,2057.5,2056.5,3.68046799]
[1772066771723,0.00488783,2057.5,2056.5,3.68046799]
[1772066772027,3.38627101,2057.9,2057.0,3.68046799]
[1772066772927,3.38987782,2057.9,2057.0,3.68046799]
[1772066773424,3.38987782,2057.9,2056.8,3.68046799]
[1772066774322,3.38627101,2057.7,2056.6,6.11599839]
[1772066774629,3.38627101,2057.8,2056.6,3.68046799]
[1772066774822,9.74927101,2057.7,2056.7,3.68046799]
[1772066775018,3.38627101,2057.8,2056.8,6.95046799]
[1772066775228,0.00360681,2057.9,2056.9,3.68046799]
[1772066775428,0.00360681,2057.9,2057.0,3.68046799]
[1772066775631,3.38987782,2057.9,2057.0,3.68046799]
[1772066778729,3.38627101,2058.3,2057.0,3.27]
[1772066778928,3.38627101,2058.5,2057.5,3.68046799]
[1772066779230,3.38627101,2058.7,2057.6,3.68046799]
[1772066779824,0.00479636,2058.7,2057.7,6.95046799]
[1772066780029,0.00479636,2058.7,2057.8,3.68046799]
[1772066789438,0.00479636,2058.7,2058.0,3.35448601]
[1772066789639,0.00479636,2058.7,2058.1,3.35448601]
[1772066789839,0.00479636,2058.7,2058.2,3.35448601]
[1772066790041,3.46397198,2058.9,2058.2,3.35448601]
[1772066790236,3.46397198,2059.2,2058.3,3.35448601]
[1772066790442,3.46397198,2059.4,2058.4,3.35448601]
[1772066790641,3.46397198,2059.4,2058.5,3.35448601]
[1772066791036,3.46782756,2059.4,2058.5,3.35448601]
[1772066792843,0.00385558,2059.4,2058.5,3.35448601]
[1772066793543,3.44909684,2059.4,2058.5,3.35448601]
[1772066796540,3.44909684,2059.4,2058.7,3.67415024]
[1772066801744,0.00385558,2059.4,2058.7,3.67415024]
[1772066803848,3.44524126,2059.7,2058.7,3.67415024]
[1772066804849,3.44953734,2059.7,2058.7,3.67415024]
[1772066806846,3.44953734,2059.7,2058.8,3.27]
[1772066807152,3.44953734,2059.7,2058.9,3.67415024]
[1772066807454,3.44953734,2059.7,2058.9,3.27]
[1772066807750,3.44953734,2059.7,2058.9,6.94415024]
[1772066808648,3.44953734,2059.7,2059.0,3.67415024]
[1772066811946,0.00429608,2059.7,2059.0,3.67415024]
[1772066812851,0.00429608,2059.7,2059.1,3.67415024]
[1772066813154,0.00429608,2059.7,2059.1,3.67815408]
[1772066816849,3.52098152,2059.7,2059.1,3.67815408]
[1772066818652,0.00429608,2059.7,2059.1,3.67815408]
[1772066820754,3.51668544,2059.9,2059.1,3.67815408]
[1772066821354,6.363,2060.0,2059.1,3.67815408]
[1772066821556,4.06028454,2060.3,2059.3,3.54911534]
[1772066821557,3.51668544,2060.3,2059.3,3.54911534]
[1772066821860,3.52283726,2060.3,2059.4,3.54911534]
[1772066823559,0.00615182,2060.3,2059.4,3.54911534]
[1772066823861,3.52283726,2060.3,2059.4,3.54911534]
[1772066824854,3.52283726,2060.3,2059.2,7.16078]
[1772066824855,3.52283726,2060.3,2059.2,6.918]
[1772066825162,3.52283726,2060.3,2059.3,3.54911534]
[1772066825361,3.51668544,2060.0,2059.1,3.55311918]
[1772066825759,1.98022348,2059.9,2059.1,3.55311918]
[1772066826056,3.51668544,2059.6,2059.1,0.00400384]
[1772066826852,3.51668544,2059.8,2059.1,3.55311918]
[1772066827058,3.51668544,2060.1,2059.2,3.54911534]
[1772066827463,6.362,2060.2,2059.2,3.54911534]
[1772066827658,6.362,2060.2,2059.3,3.54911534]
[1772066827851,3.52283726,2060.3,2059.3,3.54911534]
[1772066828057,3.52283726,2060.3,2059.4,3.54911534]
[1772066830662,3.51668544,2060.2,2059.4,3.54911534]
[1772066833662,0.00615182,2060.3,2059.4,3.54911534]
[1772066833863,0.00615182,2060.3,2059.6,3.54911534]
[1772066834163,0.00615182,2060.3,2059.6,10.47611534]
[1772066834367,0.00615182,2060.3,2059.7,3.54911534]
[1772066834869,3.51668544,2060.6,2059.7,3.54911534]
[1772066835759,3.5225781,2060.6,2059.7,3.54911534]
[1772066836263,0.00589266,2060.6,2059.9,3.54911534]
[1772066838265,0.00589266,2060.6,2060.0,6.938]
[1772066838571,0.00589266,2060.6,2060.1,3.54911534]
[1772066838760,16.669,2061.1,2060.1,3.54911534]
[1772066838959,6.362,2061.1,2060.2,3.54911534]
[1772066839768,9.88216514,2061.1,2060.2,3.54911534]
[1772066840870,3.51668544,2061.0,2060.2,3.54911534]
[1772066847272,6.3654797,2061.1,2060.2,3.54911534]
[1772066847774,0.0034797,2061.1,2060.2,3.54911534]
[1772066847979,0.0034797,2061.1,2060.3,3.6251242]
[1772066848184,0.0034797,2061.1,2060.5,3.6251242]
[1772066848481,3.60984094,2061.4,2060.5,3.6251242]
[1772066848983,3.60984094,2061.2,2060.5,3.6251242]
[1772066849180,3.60984094,2061.2,2060.2,3.6251242]
[1772066849387,3.61408789,2061.2,2060.2,3.6251242]
[1772066851184,3.61408789,2061.2,2060.3,3.6251242]
[1772066851389,0.00424695,2061.2,2060.3,3.6251242]
[1772066852590,3.49838279,2061.1,2060.3,3.6251242]
[1772066852887,3.49838279,2060.6,2059.6,3.49045743]
[1772066853188,3.49838279,2060.5,2059.6,3.49045743]
[1772066854085,3.49838279,2060.9,2059.7,3.49045743]
[1772066854284,3.49838279,2060.9,2060.0,3.49045743]
[1772066855286,6.359,2061.0,2060.0,3.49045743]
[1772066855686,9.85738279,2061.0,2060.0,3.49045743]
[1772066857595,3.50262974,2061.2,2060.0,3.49045743]
[1772066857790,3.50262974,2061.2,2060.1,3.49045743]
[1772066857989,3.50262974,2061.2,2060.2,3.49045743]
[1772066861194,3.49838279,2061.1,2060.0,9.60645582]
[1772066861495,3.49838279,2061.1,2060.0,3.49045743]
[1772066861893,3.49838279,2061.1,2059.9,6.11599839]
[1772066861894,3.49838279,2060.8,2059.8,3.49045743]
[1772066862087,3.49838279,2060.5,2059.6,3.49045743]
[1772066862287,3.49838279,2060.3,2059.6,3.49045743]
[1772066866994,3.49838279,2060.3,2059.4,10.45745743]
[1772066867199,3.49838279,2060.3,2059.1,7.53700409]
[1772066867200,3.49838279,2060.0,2059.2,3.49045743]
[1772066867403,3.49838279,2059.7,2059.1,0.00400384]
[1772066867700,3.50190647,2059.7,2059.1,3.49446127]
[1772066867900,3.49838279,2059.6,2058.7,3.49045743]
[1772066868495,3.50190647,2059.7,2058.7,3.49045743]
[1772066868899,3.50190647,2059.7,2058.7,3.49468154]
[1772066869098,0.00352368,2059.7,2058.8,3.49045743]
[1772066869299,0.00352368,2059.7,2059.0,3.49045743]
[1772066870099,3.50190647,2059.7,2059.0,3.49045743]
[1772066870690,3.49838279,2060.6,2059.2,3.49045743]
[1772066870896,3.49838279,2060.5,2059.4,3.49045743]
[1772066871200,3.49838279,2060.4,2059.4,3.49045743]
[1772066871698,3.50196908,2060.4,2059.4,3.49045743]
[1772066872200,0.00358629,2060.4,2059.4,3.49045743]
[1772066872495,0.00358629,2060.4,2059.3,9.19998348]
[1772066872496,0.00358629,2060.4,2059.6,3.49045743]
[1772066873299,3.49838279,2060.8,2059.6,3.49045743]
[1772066873499,3.49838279,2060.8,2059.8,3.49045743]
[1772066873702,6.361,2060.9,2060.0,3.49045743]
[1772066874402,6.36577069,2060.9,2060.0,3.49045743]
[1772066874799,3.49838279,2060.8,2060.0,3.49045743]
[1772066880404,3.30856733,2060.7,2059.8,3.4188921]
[1772066880605,3.30856733,2060.4,2059.6,3.4188921]
[1772066880805,3.30856733,2060.3,2059.6,3.4188921]
[1772066881006,3.30856733,2060.3,2059.2,3.4188921]
[1772066881402,10.31177069,2060.9,2059.5,3.4188921]
[1772066881603,3.30856733,2060.7,2059.5,3.4188921]
[1772066883301,3.30856733,2060.7,2059.6,3.4188921]
[1772066883499,3.30856733,2060.6,2059.6,3.4188921]
[1772066887307,3.30856733,2060.5,2059.6,3.4188921]
[1772066887612,3.30856733,2060.5,2059.3,3.4188921]
[1772066888208,3.30856733,2060.4,2059.3,3.4188921]
[1772066888511,3.30856733,2060.2,2059.3,3.4188921]
[1772066891603,9.66956733,2060.2,2059.3,3.4188921]
[1772066892815,3.30856733,2060.4,2059.3,3.4188921]
[1772066893117,3.30856733,2060.3,2059.3,3.4188921]
[1772066897618,3.30856733,2060.3,2059.5,3.4188921]
[1772066898622,6.361,2060.4,2059.5,3.4188921]
[1772066898918,3.30856733,2060.3,2059.5,3.4188921]
[1772066903626,3.30856733,2060.3,2059.6,3.4188921]
[1772066909027,9.82396861,2060.5,2059.7,3.40188416]
[1772066909238,9.82396861,2060.5,2059.7,9.51788255]
[1772066909433,6.361,2060.7,2059.9,3.40188416]
[1772066909834,9.82396861,2060.7,2059.9,3.40188416]
[1772066910232,3.46296861,2060.6,2059.9,3.40188416]
[1772066911932,0.00477069,2060.9,2060.0,9.5001581]
[1772066912128,0.00477069,2060.9,2060.2,3.38415971]
[1772066912334,0.00477069,2060.9,2060.2,3.39036721]
[1772066913037,3.28982132,2060.9,2060.2,3.39036721]
[1772066916138,0.00477069,2060.9,2060.2,3.39036721]
[1772066916334,9.64605063,2061.2,2060.2,3.39036721]
[1772066916535,3.28505063,2061.1,2060.2,3.39036721]
[1772066916835,9.64605063,2061.2,2060.4,3.38415971]
[1772066917238,9.65095706,2061.2,2060.4,3.38415971]
[1772066917435,3.28505063,2061.9,2060.9,1.97933895]
[1772066917630,3.28505063,2061.9,2061.0,3.38415971]
[1772066918332,3.28505063,2061.9,2060.7,2.22193895]
[1772066918333,3.28505063,2061.9,2060.8,3.38415971]
[1772066918537,3.28505063,2061.8,2060.8,3.38415971]
[1772066918939,3.28505063,2061.6,2060.4,3.38415971]
[1772066919133,3.28505063,2061.4,2060.4,3.38415971]
[1772066920231,3.28505063,2061.8,2060.7,1.97933895]
[1772066920436,3.28505063,2061.8,2060.8,3.38415971]
[1772066923342,3.28505063,2061.8,2060.9,3.38415971]
[1772066923845,0.00538543,2061.9,2061.0,3.38415971]
[1772066924045,3.29043606,2061.9,2061.0,3.38415971]
[1772066927845,0.00538543,2061.9,2061.1,3.38415971]
[1772066928234,3.29043606,2061.9,2061.1,3.38415971]
[1772066928436,9.89089606,2061.9,2060.9,3.38415971]
[1772066928741,3.28505063,2061.8,2060.9,3.38415971]
[1772066933145,0.00538543,2061.9,2060.3,3.38415971]
[1772066933146,3.28505063,2061.6,2060.3,3.38415971]
[1772066938046,3.26879534,2061.4,2060.3,3.38415971]
[1772066941850,3.26879534,2061.5,2060.4,3.40420465]
[1772066942247,3.26879534,2061.5,2060.5,3.40420465]
[1772066943446,2.22183895,2061.6,2060.4,3.40420465]
[1772066943447,3.26879534,2061.3,2060.4,3.40420465]
[1772066944054,3.26879534,2061.3,2060.5,3.40420465]
[1772066947459,3.26879534,2061.3,2060.6,3.40420465]
[1772066957071,3.26879534,2061.5,2060.6,3.40420465]
[1772066957273,3.26879534,2061.8,2060.9,3.40420465]
[1772066957571,3.26879534,2061.8,2061.0,3.40420465]
[1772066959273,0.00538543,2061.9,2061.3,1.97740902]
[1772066959468,9.62679534,2062.4,2061.4,3.40420465]